[Event "Queens Festival Final Team 2022"]
[Site "Tornelo"]
[Date "2022.06.26"]
[Round "11.6"]
[White "Bian, Erin"]
[Black "Vujcic, Milena"]
[Result "0-1"]
[ECO "C80"]
[WhiteElo "1811"]
[BlackElo "1987"]
[Annotator "NA RC"]
[PlyCount "94"]
[EventDate "2022.06.24"]
[EventType "team-tourn"]
[EventCountry "NET"]
[SourceTitle "playchess.com"]
[Source "ChessBase"]
[SourceQuality "1"]
[WhiteTeam "United States"]
[BlackTeam "Serbia"]
[WhiteTeamCountry "USA"]
[BlackTeamCountry "SRB"]
[TimeControl "180+2"]

1. e4 {[%emt 0:00:02]} e5 {[%emt 0:00:04]} 2. Nf3 {[%emt 0:00:02]} Nc6 {[%emt 0:00:02]} 3. Bb5 {[%emt 0:00:01]} a6 {[%emt 0:00:01]} 4. Ba4 {[%emt 0:00:02]} Nf6 {[%emt 0:00:02]} 5. O-O {[%emt 0:00:01]} Nxe4 {[%emt 0:00:01]} 6. d4 {[%emt 0:00:03]} b5 {[%emt 0:00:02]} 7. Bb3 {[%emt 0:00:01]} d5 {[%emt 0:00:01]} 8. dxe5 {[%emt 0:00:03]} Be6 {[%emt 0:00:02]} 9. Nbd2 {[%emt 0:00:06]} Bc5 {[%emt 0:00:07]} 10. Nxe4 {[%emt 0:00:09]} dxe4 {[%emt 0:00:03]} 11. Ng5 {[%emt 0:00:07]} Bxb3 {[%emt 0:00:13]} 12. axb3 {[%emt 0:00:03]} Qxd1 {[%emt 0:00:15]} 13. Rxd1 {[%emt 0:00:03]} Nxe5 {[%emt 0:00:02]} 14. Nxe4 {[%emt 0:00:01]} Bb6 {[%emt 0:00:02]} 15. Bf4 {[%emt 0:00:06]} Ng6 {[%emt 0:00:14]} 16. Bg3 {[%emt 0:00:03]} O-O {[%emt 0:00:04]} 17. b4 {[%emt 0:00:05]} Rfd8 {[%emt 0:00:05]} 18. Kf1 {[%emt 0:00:09]} Rxd1+ {[%emt 0:00:07]} 19. Rxd1 {[%emt 0:00:02]} f5 {[%emt 0:00:02]} 20. Nc3 {[%emt 0:00:48]} f4 {[%emt 0:00:03]} 21. Nd5 {[%emt 0:00:02]} fxg3 {[%emt 0:00:03]} 22. hxg3 {[%emt 0:00:05]} Kf7 {[%emt 0:00:12]} 23. Nxb6 {[%emt 0:00:07]} cxb6 {[%emt 0:00:04]} 24. Rd7+ {[%emt 0:00:01]} Ne7 {[%emt 0:00:09]} 25. Rb7 {[%emt 0:00:03]} Ke8 {[%emt 0:00:11]} 26. Rxb6 {[%emt 0:00:02]} Ra7 {[%emt 0:00:01]} 27. Rb8+ {[%emt 0:00:02]} Kd7 {[%emt 0:00:04]} 28. c3 {[%emt 0:00:05]} g6 {[%emt 0:00:03]} 29. Rh8 {[%emt 0:00:04]} h5 {[%emt 0:00:04]} 30. f3 {[%emt 0:00:04]} Ke6 {[%emt 0:00:05]} 31. Kf2 {[%emt 0:00:04]} Kf6 {[%emt 0:00:02]} 32. Rf8+ {[%emt 0:00:01]} Ke6 {[%emt 0:00:02]} 33. Rb8 {[%emt 0:00:02]} Nf5 {[%emt 0:00:04]} 34. Rb6+ {[%emt 0:00:08]} Kf7 {[%emt 0:00:02]} 35. g4 {[%emt 0:00:04]} hxg4 {[%emt 0:00:02]} 36. fxg4 {[%emt 0:00:01]} Ne7 {[%emt 0:00:03]} 37. Kg3 {[%emt 0:00:03]} Nd5 {[%emt 0:00:02]} 38. Rd6 {[%emt 0:00:01]} Nf6 {[%emt 0:00:02]} 39. Kf4 {[%emt 0:00:02]} a5 {[%emt 0:00:04]} 40. Rb6 {[%emt 0:00:07]} Nd5+ {[%emt 0:00:05]} 41. Kg5 {[%emt 0:00:02]} Nxb6 {[%emt 0:00:02]} 42. Kh6 {[%emt 0:00:01]} axb4 {[%emt 0:00:02]} 43. cxb4 {[%emt 0:00:02]} Ra4 {[%emt 0:00:02]} 44. g5 {[%emt 0:00:03]} Rxb4 {[%emt 0:00:01]} 45. g3 {[%emt 0:00:01]} Rg4 {[%emt 0:00:03]} 46. b4 {[%emt 0:00:02]} Rxg3 {[%emt 0:00:06]} 47. Kh7 {[%emt 0:00:01]} Rh3# {[%emt 0:00:01]} 0-1

[Event "Queens Festival Final Team 2022"]
[Site "Tornelo"]
[Date "2022.06.26"]
[Round "11.6"]
[White "Vukosavljevic, Tatjana"]
[Black "Yellamraju, Aparna"]
[Result "1-0"]
[ECO "E06"]
[WhiteElo "1758"]
[BlackElo "1720"]
[Annotator "NA RC"]
[PlyCount "55"]
[EventDate "2022.06.24"]
[EventType "team-tourn"]
[EventCountry "NET"]
[SourceTitle "playchess.com"]
[Source "ChessBase"]
[SourceQuality "1"]
[WhiteTeam "Serbia"]
[BlackTeam "United States"]
[WhiteTeamCountry "SRB"]
[BlackTeamCountry "USA"]
[TimeControl "180+2"]

1. Nf3 {[%emt 0:00:02]} d5 {[%emt 0:00:05]} 2. g3 {[%emt 0:00:02]} Nf6 {[%emt 0:00:02]} 3. Bg2 {[%emt 0:00:01]} e6 {[%emt 0:00:01]} 4. O-O {[%emt 0:00:05]} Be7 {[%emt 0:00:01]} 5. d4 {[%emt 0:00:01]} O-O {[%emt 0:00:02]} 6. c4 {[%emt 0:00:02]} c6 {[%emt 0:00:01]} 7. b3 {[%emt 0:00:02]} b6 {[%emt 0:00:02]} 8. Bb2 {[%emt 0:00:01]} Bb7 {[%emt 0:00:01]} 9. Nbd2 {[%emt 0:00:02]} Na6 {[%emt 0:00:02]} 10. a3 {[%emt 0:00:03]} c5 {[%emt 0:00:05]} 11. Qc2 {[%emt 0:00:12]} Rc8 {[%emt 0:00:07]} 12. Qd3 {[%emt 0:00:23]} cxd4 {[%emt 0:00:25]} 13. Qxd4 {[%emt 0:00:22]} Bc5 {[%emt 0:00:24]} 14. Qh4 {[%emt 0:00:16]} Be7 {[%emt 0:00:09]} 15. Qd4 {[%emt 0:00:06]} dxc4 {[%emt 0:00:09]} 16. Nxc4 {[%emt 0:00:08]} Nc5 {[%emt 0:00:12]} 17. b4 {[%emt 0:00:22]} Qxd4 {[%emt 0:00:12]} 18. Nxd4 {[%emt 0:00:06]} Bxg2 {[%emt 0:00:02]} 19. Kxg2 {[%emt 0:00:03]} Nce4 {[%emt 0:00:07]} 20. Ne5 {[%emt 0:00:13]} Nd5 {[%emt 0:00:16]} 21. Rac1 {[%emt 0:00:06]} Bf6 {[%emt 0:00:10]} 22. Ndf3 {[%emt 0:00:25]} Rfd8 {[%emt 0:00:21]} 23. Rfd1 {[%emt 0:00:03]} Nd6 {[%emt 0:00:07]} 24. Ba1 {[%emt 0:00:02]} Nb5 {[%emt 0:00:10]} 25. Nc6 {[%emt 0:00:09]} Re8 {[%emt 0:00:23]} 26. e4 {[%emt 0:00:05]} Bxa1 {[%emt 0:00:06]} 27. exd5 {[%emt 0:00:07]} Bb2 {[%emt 0:00:11]} 28. Rc2 {[%emt 0:00:03]} 1-0